lending/lending_fUSD_20241229
["ID","MTS","AMOUNT","RATE_DAILY","PERIOD"]
[347089474,1735492266604,-1474.73,0.00014549,2]
[347089475,1735492266614,-500.0,0.00014549,2]
[347089476,1735492266625,-907.52,0.00014549,2]
[347089477,1735492266635,-513.3,0.00014549,2]
[347089478,1735492266644,-500.0,0.00014549,2]
[347089479,1735492266654,-678.69,0.00014549,2]
[347089480,1735492266664,-981.1,0.00014549,2]
[347089481,1735492266675,-500.0,0.00014549,2]
[347089482,1735492266684,-948.08,0.00014549,2]
[347089483,1735492266694,-500.0,0.00014549,2]
[347089484,1735492266704,-1301.93,0.0001455,2]
[347089485,1735492266713,-512.72,0.0001455,2]
[347089486,1735492266723,-500.0,0.0001455,2]
[347089487,1735492266733,-500.0,0.0001455,2]
[347089488,1735492266743,-500.0,0.0001455,2]
[347089489,1735492266752,-500.0,0.0001455,2]
[347089490,1735492266762,-500.0,0.0001455,2]
[347089491,1735492266772,-500.0,0.0001455,2]
[347089492,1735492266781,-507.7,0.0001455,2]
[347089493,1735492266790,-602.95,0.0001455,2]
[347089494,1735492266800,-212.36,0.0001455,2]
[347089495,1735492266810,-204.29,0.0001455,2]
[347089496,1735492266820,-578.18,0.0001455,2]
[347089497,1735492266830,-994.13,0.0001455,2]
[347089498,1735492266840,-500.0,0.0001455,2]
[347089499,1735492266850,-500.0,0.0001455,2]
[347089500,1735492266859,-292.09,0.0001455,2]
[347089501,1735492266869,-896.87,0.0001455,2]
[347089502,1735492266878,-500.0,0.0001455,2]
[347089503,1735492266888,-581.65,0.0001455,2]
[347089504,1735492266898,-2338.46,0.0001455,2]
[347089505,1735492266907,-1526.23,0.0001455,2]
[347089506,1735492266917,-1150.05,0.0001455,2]
[347089507,1735492266926,-500.0,0.0001455,2]
[347089508,1735492266937,-500.0,0.0001455,2]
[347089509,1735492266946,-500.0,0.00014551,2]
[347089510,1735492266955,-500.0,0.00014551,2]
[347089511,1735492266965,-500.0,0.00014551,2]
[347089512,1735492266975,-500.0,0.00014551,2]
[347089513,1735492266983,-500.0,0.00014551,2]
[347089514,1735492266993,-500.0,0.00014551,2]
[347089515,1735492267002,-650.51,0.00014551,2]
[347089516,1735492267011,-500.0,0.00014551,2]
[347089517,1735492267021,-500.0,0.00014551,2]
[347089518,1735492267034,-150.0,0.00014564,2]
[347089519,1735492267044,-166.93681204,0.00014588,2]
[347089520,1735492267053,-1057.0,0.00014618,2]
[347089521,1735492267063,-151.0,0.00014631,2]
[347089522,1735492267072,-150.0,0.00014655,2]
[347089523,1735492267081,-150.0,0.00014709,2]
[347089524,1735492267090,-150.0,0.00014728,2]
[347089525,1735492267100,-150.0,0.00014765,2]
[347089526,1735492267110,-500.0,0.00014799,2]
[347089527,1735492267119,-1000.0,0.00014806,2]
[347089528,1735492267128,-500.0,0.00014821,2]
[347089529,1735492267138,-823.77,0.00014823,2]
[347089530,1735492267148,-3884.19,0.00014823,2]
[347089531,1735492267158,-2947.67,0.00014823,2]
[347089532,1735492267167,-500.0,0.00014823,2]
[347089533,1735492267176,-500.0,0.00014823,2]
[347089534,1735492267187,-894.1,0.00014823,2]
[347089535,1735492267198,-500.0,0.00014823,2]
[347089536,1735492267208,-1699.41,0.00014823,2]
[347089537,1735492267217,-500.0,0.00014823,2]
[347089538,1735492267227,-846.62,0.00014823,2]
[347089539,1735492267236,-518.89,0.00014823,2]
[347089540,1735492267245,-500.0,0.00014823,2]
[347089541,1735492267254,-500.0,0.00014823,2]
[347089542,1735492267263,-1058.51,0.00014823,2]
[347089543,1735492267274,-638.58,0.00014823,2]
[347089544,1735492267283,-3094.75,0.00014823,2]
[347089545,1735492267293,-500.0,0.00014823,2]
[347089546,1735492267302,-500.0,0.00014823,2]
[347089547,1735492267312,-500.0,0.00014823,2]
[347089548,1735492267321,-882.64,0.00014823,2]
[347089549,1735492267331,-500.0,0.00014823,2]
[347089550,1735492267340,-863.02,0.00014823,2]
[347089551,1735492267349,-500.0,0.00014823,2]
[347089552,1735492267358,-698.08,0.00014823,2]
[347089553,1735492267367,-500.0,0.00014823,2]
[347089554,1735492267377,-500.0,0.00014823,2]
[347089555,1735492267386,-2036.77,0.00014823,2]
[347089556,1735492267395,-510.33,0.00014823,2]
[347089557,1735492267404,-689.34,0.00014823,2]
[347089558,1735492267415,-532.94,0.00014823,2]
[347089559,1735492267476,-500.0,0.00014823,2]
[347089560,1735492267486,-715.59,0.00014823,2]
[347089561,1735492267496,-500.0,0.00014823,2]
[347089562,1735492267505,-500.0,0.00014823,2]
[347089563,1735492267516,-2541.75,0.00014823,2]
[347089564,1735492267527,-830.18,0.00014823,2]
[347089565,1735492267537,-500.0,0.00014823,2]
[347089566,1735492267546,-154.887694,0.00014823,2]
[347089567,1735492267555,-500.0,0.00014823,2]
[347089568,1735492267565,-1474.73,0.00014823,2]
[347089569,1735492267575,-500.0,0.00014823,2]
[347089570,1735492267584,-907.52,0.00014823,2]
[347089571,1735492267596,-513.3,0.00014823,2]
[347089572,1735492267605,-555.09,0.00014823,2]
[347089573,1735492267615,-678.69,0.00014823,2]
[347089574,1735492267624,-981.1,0.00014823,2]
[347089575,1735492267634,-500.0,0.00014823,2]
[347089576,1735492267643,-948.08,0.00014823,2]
[347089577,1735492267654,-500.0,0.00014823,2]
[347089578,1735492267664,-500.25,0.00014823,2]
[347089579,1735492267673,-1301.93,0.00014824,2]
[347089580,1735492267684,-512.72,0.00014824,2]
[347089581,1735492267692,-500.0,0.00014824,2]
[347089582,1735492267702,-500.0,0.00014824,2]
[347089583,1735492267712,-500.0,0.00014824,2]
[347089584,1735492267722,-500.0,0.00014824,2]
[347089585,1735492267731,-500.0,0.00014824,2]
[347089586,1735492267740,-500.0,0.00014824,2]
[347089587,1735492267750,-507.7,0.00014824,2]
[347089588,1735492267760,-602.95,0.00014824,2]
[347089589,1735492267770,-578.18,0.00014824,2]
[347089590,1735492267781,-994.13,0.00014824,2]
[347089591,1735492267790,-500.0,0.00014824,2]
[347089592,1735492267799,-500.0,0.00014824,2]
[347089593,1735492267809,-896.87,0.00014824,2]
[347089594,1735492267818,-642.54276714,0.00014824,2]
[347089595,1735492267828,-581.65,0.00014824,2]
[347089596,1735492267837,-2338.46,0.00014824,2]
[347089597,1735492267847,-1526.23,0.00014824,2]
[347089598,1735492267857,-1150.05,0.00014824,2]
[347089599,1735492267866,-500.0,0.00014824,2]
[347089600,1735492267875,-500.0,0.00014824,2]
[347089601,1735492267884,-480.91,0.00014825,2]
[347089602,1735492267894,-500.0,0.00014825,2]
[347089603,1735492267903,-500.0,0.00014825,2]
[347089604,1735492267912,-500.0,0.00014825,2]
[347089605,1735492267929,-500.0,0.00014825,2]
[347089606,1735492267938,-500.0,0.00014825,2]
[347089607,1735492267947,-650.51,0.00014825,2]
[347089608,1735492267957,-500.0,0.00014825,2]
[347089609,1735492267967,-500.0,0.00014825,2]
[347089610,1735492267976,-150.0,0.00014848,2]
[347089611,1735492267986,-150.0,0.00014889,2]
[347089612,1735492267995,-150.0,0.00014959,2]
[347089613,1735492268004,-1500.0,0.00014991,2]
[347089614,1735492268014,-150.0,0.00014998,2]
[347089615,1735492268026,-150.0,0.00015036,2]
[347089616,1735492268036,-150.0,0.00015041,2]
[347089617,1735492268046,-300.0,0.00015068,2]
[347089618,1735492268055,-823.77,0.00015097,2]
[347089619,1735492268065,-3884.19,0.00015097,2]
[347089620,1735492268073,-2947.67,0.00015097,2]
[347089621,1735492268083,-500.0,0.00015097,2]
[347089622,1735492268092,-894.1,0.00015097,2]
[347089623,1735492268102,-500.0,0.00015097,2]
[347089624,1735492268112,-1699.41,0.00015097,2]
[347089625,1735492268123,-500.0,0.00015097,2]
[347089626,1735492268132,-846.62,0.00015097,2]
[347089627,1735492268141,-518.89,0.00015097,2]
[347089628,1735492268151,-564.26926023,0.00015097,2]
[347089629,1735492268160,-500.0,0.00015097,2]
[347089630,1735492268170,-1058.51,0.00015097,2]
[347089631,1735492268179,-638.58,0.00015097,2]
[347089632,1735492268188,-3094.75,0.00015097,2]
[347089633,1735492268198,-500.0,0.00015097,2]
[347089634,1735492268209,-500.0,0.00015097,2]
[347089635,1735492268220,-500.0,0.00015097,2]
[347089636,1735492268229,-882.64,0.00015097,2]
[347089637,1735492268239,-500.0,0.00015097,2]
[347089638,1735492268249,-863.02,0.00015097,2]
[347089639,1735492268259,-500.0,0.00015097,2]
[347089640,1735492268268,-698.08,0.00015097,2]
[347089641,1735492268278,-500.0,0.00015097,2]
[347089642,1735492268288,-500.0,0.00015097,2]
[347089643,1735492268298,-2036.77,0.00015097,2]
[347089644,1735492268308,-510.33,0.00015097,2]
[347089645,1735492268317,-689.34,0.00015097,2]
[347089646,1735492268327,-500.0,0.00015097,2]
[347089647,1735492268336,-715.59,0.00015097,2]
[347089648,1735492268345,-500.0,0.00015097,2]
[347089649,1735492268354,-500.0,0.00015097,2]
[347089650,1735492268364,-2541.75,0.00015097,2]
[347089651,1735492268374,-830.18,0.00015097,2]
[347089652,1735492268384,-500.0,0.00015097,2]
[347089653,1735492268393,-154.887694,0.00015097,2]
[347089654,1735492268402,-500.0,0.00015097,2]
[347089655,1735492268411,-1474.73,0.00015097,2]
[347089656,1735492268421,-500.0,0.00015097,2]
[347089657,1735492268431,-907.52,0.00015097,2]
[347089658,1735492268441,-513.3,0.00015097,2]
[347089659,1735492268450,-678.69,0.00015097,2]
[347089660,1735492268460,-981.1,0.00015097,2]
[347089661,1735492268470,-500.0,0.00015097,2]
[347089662,1735492268479,-948.08,0.00015097,2]
[347089663,1735492268489,-1301.93,0.00015098,2]
[347089664,1735492268498,-512.72,0.00015098,2]
[347089665,1735492268507,-500.0,0.00015098,2]
[347089666,1735492268517,-500.0,0.00015098,2]
[347089667,1735492268527,-500.0,0.00015098,2]
[347089668,1735492268537,-500.0,0.00015098,2]
[347089669,1735492268547,-500.0,0.00015098,2]
[347089670,1735492268556,-267.02093779,0.00015098,2]
[347089671,1735492268566,-507.7,0.00015098,2]
[347089672,1735492268575,-602.95,0.00015098,2]
[347089673,1735492268584,-578.18,0.00015098,2]
[347089674,1735492268596,-994.13,0.00015098,2]
[347089675,1735492268604,-500.0,0.00015098,2]
[347089676,1735492268614,-500.0,0.00015098,2]
[347089677,1735492268624,-896.87,0.00015098,2]
[347089678,1735492268633,-581.65,0.00015098,2]
[347089679,1735492268642,-2338.46,0.00015098,2]
[347089680,1735492268651,-1526.23,0.00015098,2]
[347089681,1735492268660,-1150.05,0.00015098,2]
[347089682,1735492268672,-572.06017053,0.00015098,2]
[347089683,1735492268681,-500.0,0.00015098,2]
[347089684,1735492268691,-384.75,0.00015099,2]
[347089685,1735492268700,-500.0,0.00015099,2]
[347089686,1735492268709,-500.0,0.00015099,2]
[347089687,1735492268719,-500.0,0.00015099,2]
[347089688,1735492268728,-500.0,0.00015099,2]
[347089689,1735492268738,-650.51,0.00015099,2]
[347089690,1735492268747,-500.0,0.00015099,2]
[347089691,1735492268756,-500.0,0.00015099,2]
[347089692,1735492268766,-582.07,0.00015133,2]
[347089693,1735492268776,-150.0,0.00015157,2]
[347089694,1735492268786,-368.09,0.0001516,2]
[347089695,1735492268796,-1500.0,0.00015248,2]
[347089696,1735492268805,-150.0,0.00015267,2]
[347089697,1735492268814,-150.0,0.00015296,2]
[347089698,1735492268823,-150.0,0.00015329,2]
[347089699,1735492268832,-150.0,0.00015346,2]
[347089700,1735492268841,-1057.0,0.00015349,2]
[347089701,1735492268850,-1000.0,0.00015369,2]
[347089702,1735492268859,-823.77,0.00015371,2]
[347089703,1735492268868,-3884.19,0.00015371,2]
[347089704,1735492268877,-2947.67,0.00015371,2]
[347089705,1735492268887,-500.0,0.00015371,2]
[347089706,1735492268896,-894.1,0.00015371,2]
[347089707,1735492268906,-500.0,0.00015371,2]
[347089708,1735492268915,-1699.41,0.00015371,2]
[347089709,1735492268924,-500.0,0.00015371,2]
[347089710,1735492268934,-846.62,0.00015371,2]
[347089711,1735492268943,-518.89,0.00015371,2]
[347089712,1735492268953,-500.0,0.00015371,2]
[347089713,1735492268962,-1058.51,0.00015371,2]
[347089714,1735492268971,-638.58,0.00015371,2]
[347089715,1735492268981,-3094.75,0.00015371,2]
[347089716,1735492268990,-500.0,0.00015371,2]
[347089717,1735492269000,-500.0,0.00015371,2]
[347089718,1735492269009,-882.64,0.00015371,2]
[347089719,1735492269019,-500.0,0.00015371,2]
[347089720,1735492269030,-863.02,0.00015371,2]
[347089721,1735492269039,-500.0,0.00015371,2]
[347089722,1735492269048,-698.08,0.00015371,2]
[347089723,1735492269057,-280.80064474,0.00015371,2]
[347089724,1735492269066,-500.0,0.00015371,2]
[347089725,1735492269076,-2036.77,0.00015371,2]
[347089726,1735492269086,-510.33,0.00015371,2]
[347089727,1735492269095,-689.34,0.00015371,2]
[347089728,1735492269104,-500.0,0.00015371,2]
[347089729,1735492269114,-715.59,0.00015371,2]
[347089730,1735492269123,-500.0,0.00015371,2]
[347089731,1735492269132,-500.0,0.00015371,2]
[347089732,1735492269141,-2541.75,0.00015371,2]
[347089733,1735492269150,-830.18,0.00015371,2]
[347089734,1735492269160,-500.0,0.00015371,2]
[347089735,1735492269169,-500.0,0.00015371,2]
[347089736,1735492269178,-1474.73,0.00015371,2]
[347089737,1735492269187,-500.0,0.00015371,2]
[347089738,1735492269197,-907.52,0.00015371,2]
[347089739,1735492269205,-513.3,0.00015371,2]
[347089740,1735492269215,-678.69,0.00015371,2]
[347089741,1735492269224,-981.1,0.00015371,2]
[347089742,1735492269234,-393.68,0.00015371,2]
[347089743,1735492269243,-948.08,0.00015371,2]
[347089744,1735492269252,-1301.93,0.00015372,2]
[347089745,1735492269262,-512.72,0.00015372,2]
[347089746,1735492269271,-500.0,0.00015372,2]
[347089747,1735492269281,-500.0,0.00015372,2]
[347089748,1735492269291,-500.0,0.00015372,2]
[347089749,1735492269300,-500.0,0.00015372,2]
[347089750,1735492269310,-500.0,0.00015372,2]
[347089751,1735492269320,-507.7,0.00015372,2]
[347089752,1735492269329,-602.95,0.00015372,2]
[347089753,1735492269339,-578.18,0.00015372,2]
[347089754,1735492269348,-994.13,0.00015372,2]
[347089755,1735492269358,-500.0,0.00015372,2]
[347089756,1735492269367,-500.0,0.00015372,2]
[347089757,1735492269376,-896.87,0.00015372,2]
[347089758,1735492269386,-500.0,0.00015372,2]
[347089759,1735492269395,-581.65,0.00015372,2]
[347089760,1735492269404,-500.0,0.00015372,2]
[347089761,1735492269414,-500.0,0.00015372,2]
[347089762,1735492269424,-500.0,0.00015372,2]
[347089763,1735492269434,-2338.46,0.00015372,2]
[347089764,1735492269445,-500.0,0.00015372,2]
[347089765,1735492269454,-1526.23,0.00015372,2]
[347089766,1735492269464,-1150.05,0.00015372,2]
[347089767,1735492269473,-605.13,0.00015372,2]
[347089768,1735492269482,-500.0,0.00015372,2]
[347089769,1735492269492,-4131.33,0.00015372,2]
[347089770,1735492269501,-500.0,0.00015372,2]
[347089771,1735492269511,-1488.33,0.00015372,2]
[347089772,1735492269522,-500.0,0.00015373,2]
[347089773,1735492269531,-500.0,0.00015373,2]
[347089774,1735492269541,-500.0,0.00015373,2]
[347089775,1735492269551,-500.0,0.00015373,2]
[347089776,1735492269560,-650.51,0.00015373,2]
[347089777,1735492269570,-500.0,0.00015373,2]
[347089778,1735492269580,-218.01069156,0.00015373,2]
[347089779,1735492269589,-500.0,0.00015374,2]
[347089780,1735492269603,-150.0,0.00015389,2]
[347089781,1735492269612,-150.0,0.00015464,2]
[347089782,1735492269621,-150.0,0.00015559,2]
[347089783,1735492269631,-150.0,0.00015599,2]
[347089784,1735492269641,-823.77,0.00015645,2]
[347089785,1735492269650,-3884.19,0.00015645,2]
[347089786,1735492269659,-2947.67,0.00015645,2]
[347089787,1735492269669,-500.0,0.00015645,2]
[347089788,1735492269678,-894.1,0.00015645,2]
[347089789,1735492269688,-500.0,0.00015645,2]
[347089790,1735492269697,-1699.41,0.00015645,2]
[347089791,1735492269708,-500.0,0.00015645,2]
[347089792,1735492269718,-846.62,0.00015645,2]
[347089793,1735492269727,-518.89,0.00015645,2]
[347089794,1735492269737,-500.0,0.00015645,2]
[347089795,1735492269747,-1058.51,0.00015645,2]
[347089796,1735492269756,-638.58,0.00015645,2]
[347089797,1735492269766,-3094.75,0.00015645,2]
[347089798,1735492269775,-500.0,0.00015645,2]
[347089799,1735492269785,-500.0,0.00015645,2]
[347089800,1735492269794,-882.64,0.00015645,2]
[347089801,1735492269804,-500.0,0.00015645,2]
[347089802,1735492269814,-863.02,0.00015645,2]
[347089803,1735492269823,-500.0,0.00015645,2]
[347089804,1735492269832,-698.08,0.00015645,2]
[347089805,1735492269842,-500.0,0.00015645,2]
[347089806,1735492269851,-2036.77,0.00015645,2]
[347089807,1735492269861,-510.33,0.00015645,2]
[347089808,1735492269870,-689.34,0.00015645,2]
[347089809,1735492269880,-500.0,0.00015645,2]
[347089810,1735492269889,-715.59,0.00015645,2]
[347089811,1735492269899,-500.0,0.00015645,2]
[347089812,1735492269907,-500.0,0.00015645,2]
[347089813,1735492269917,-2541.75,0.00015645,2]
[347089814,1735492269926,-830.18,0.00015645,2]
[347089815,1735492269936,-500.0,0.00015645,2]
[347089816,1735492269945,-1474.73,0.00015645,2]
[347089817,1735492269954,-500.0,0.00015645,2]
[347089818,1735492269964,-500.0,0.00015645,2]
[347089819,1735492269973,-907.52,0.00015645,2]
[347089820,1735492269983,-513.3,0.00015645,2]
[347089821,1735492269992,-981.1,0.00015645,2]
[347089822,1735492270003,-678.69,0.00015645,2]
[347089823,1735492270012,-948.08,0.00015645,2]
[347089824,1735492270022,-1301.93,0.00015646,2]
[347089825,1735492270032,-512.72,0.00015646,2]
[347089826,1735492270042,-500.0,0.00015646,2]
[347089827,1735492270052,-500.0,0.00015646,2]
[347089828,1735492270063,-500.0,0.00015646,2]
[347089829,1735492270072,-414.65329005,0.00015646,2]
[347089830,1735492270082,-500.0,0.00015646,2]
[347089831,1735492270093,-507.7,0.00015646,2]
[347089832,1735492270103,-602.95,0.00015646,2]
[347089833,1735492270113,-578.18,0.00015646,2]
[347089834,1735492270123,-994.13,0.00015646,2]
[347089835,1735492270133,-500.0,0.00015646,2]
[347089836,1735492270142,-269.55,0.00015646,2]
[347089837,1735492270153,-896.87,0.00015646,2]
[347089838,1735492270162,-500.0,0.00015646,2]
[347089839,1735492270172,-581.65,0.00015646,2]
[347089840,1735492270182,-500.0,0.00015646,2]
[347089841,1735492270192,-500.0,0.00015646,2]
[347089842,1735492270203,-500.0,0.00015646,2]
[347089843,1735492270212,-2338.46,0.00015646,2]
[347089844,1735492270222,-500.0,0.00015646,2]
[347089845,1735492270231,-1526.23,0.00015646,2]
[347089846,1735492270241,-1150.05,0.00015646,2]
[347089847,1735492270251,-605.13,0.00015646,2]
[347089848,1735492270260,-500.0,0.00015646,2]
[347089849,1735492270270,-4131.33,0.00015646,2]
[347089850,1735492270280,-515.43926,0.00015646,2]
[347089851,1735492270290,-1488.33,0.00015646,2]
[347089852,1735492270300,-500.0,0.00015647,2]
[347089853,1735492270309,-500.0,0.00015647,2]
[347089854,1735492270319,-500.0,0.00015647,2]
[347089855,1735492270329,-500.0,0.00015647,2]
[347089856,1735492270339,-650.51,0.00015647,2]
[347089857,1735492270349,-500.0,0.00015647,2]
[347089858,1735492270358,-150.0,0.00015662,2]
[347089859,1735492270368,-150.0,0.00015706,2]
[347089860,1735492270378,-150.0,0.00015712,2]
[347089861,1735492270388,-1500.0,0.00015716,2]
[347089862,1735492270398,-150.0,0.00015726,2]
[347089863,1735492270407,-150.0,0.00015736,2]
[347089864,1735492270417,-150.0,0.00015752,2]
[347089865,1735492270427,-150.0,0.00015799,2]
[347089866,1735492270436,-900.0,0.00015808,2]
[347089867,1735492270446,-150.0,0.00015836,2]
[347089868,1735492270456,-150.0,0.00015877,2]
[347089869,1735492270465,-823.77,0.00015919,2]
[347089870,1735492270475,-3884.19,0.00015919,2]
[347089871,1735492270484,-2947.67,0.00015919,2]
[347089872,1735492270494,-500.0,0.00015919,2]
[347089873,1735492270503,-894.1,0.00015919,2]
[347089874,1735492270514,-500.0,0.00015919,2]
[347089875,1735492270524,-1699.41,0.00015919,2]
[347089876,1735492270534,-500.0,0.00015919,2]
[347089877,1735492270544,-846.62,0.00015919,2]
[347089878,1735492270553,-518.89,0.00015919,2]
[347089879,1735492270563,-500.0,0.00015919,2]
[347089880,1735492270573,-1058.51,0.00015919,2]
[347089881,1735492270583,-638.58,0.00015919,2]
[347089882,1735492270595,-3094.75,0.00015919,2]
[347089883,1735492270605,-500.0,0.00015919,2]
[347089884,1735492270615,-500.0,0.00015919,2]
[347089885,1735492270625,-882.64,0.00015919,2]
[347089886,1735492270635,-500.0,0.00015919,2]
[347089887,1735492270645,-863.02,0.00015919,2]
[347089888,1735492270656,-500.0,0.00015919,2]
[347089889,1735492270666,-698.08,0.00015919,2]
[347089890,1735492270675,-500.0,0.00015919,2]
[347089891,1735492270685,-2036.77,0.00015919,2]
[347089892,1735492270695,-510.33,0.00015919,2]
[347089893,1735492270704,-689.34,0.00015919,2]
[347089894,1735492270714,-422.71683445,0.00015919,2]
[347089895,1735492270724,-715.59,0.00015919,2]
[347089896,1735492270734,-257.89596756,0.00015919,2]
[347089897,1735492270743,-643.62289608,0.00015919,2]
[347089898,1735492270753,-2541.75,0.00015919,2]
[347089899,1735492270763,-830.18,0.00015919,2]
[347089900,1735492270774,-500.0,0.00015919,2]
[347089901,1735492270784,-1474.73,0.00015919,2]
[347089902,1735492270794,-539.39,0.00015919,2]
[347089903,1735492270804,-500.0,0.00015919,2]
[347089904,1735492270814,-907.52,0.00015919,2]
[347089905,1735492270824,-513.3,0.00015919,2]
[347089906,1735492270834,-981.1,0.00015919,2]
[347089907,1735492270844,-678.69,0.00015919,2]
[347089908,1735492270854,-948.08,0.00015919,2]
[347089909,1735492270864,-1301.93,0.0001592,2]
[347089910,1735492270874,-512.72,0.0001592,2]
[347089911,1735492270883,-644.13083126,0.0001592,2]
[347089912,1735492270893,-500.0,0.0001592,2]
[347089913,1735492270903,-546.27354184,0.0001592,2]
[347089914,1735492270913,-606.23132132,0.0001592,2]
[347089915,1735492270923,-507.7,0.0001592,2]
[347089916,1735492270933,-602.95,0.0001592,2]
[347089917,1735492270943,-578.18,0.0001592,2]
[347089918,1735492270953,-994.13,0.0001592,2]
[347089919,1735492270963,-500.0,0.0001592,2]
[347089920,1735492270972,-896.87,0.0001592,2]
[347089921,1735492270982,-500.0,0.0001592,2]
[347089922,1735492270992,-581.65,0.0001592,2]
[347089923,1735492271002,-500.0,0.0001592,2]
[347089924,1735492271011,-500.0,0.0001592,2]
[347089925,1735492271022,-500.0,0.0001592,2]
[347089926,1735492271032,-2338.46,0.0001592,2]
[347089927,1735492271042,-500.0,0.0001592,2]
[347089928,1735492271051,-1526.23,0.0001592,2]
[347089929,1735492271062,-1150.05,0.0001592,2]
[347089930,1735492271072,-605.13,0.0001592,2]
[347089931,1735492271083,-500.0,0.0001592,2]
[347089932,1735492271092,-4131.33,0.0001592,2]
[347089933,1735492271102,-1488.33,0.0001592,2]
[347089934,1735492271112,-500.0,0.00015921,2]
[347089935,1735492271122,-500.0,0.00015921,2]
[347089936,1735492271132,-500.0,0.00015921,2]
[347089937,1735492271142,-500.0,0.00015921,2]
[347089938,1735492271151,-650.51,0.00015921,2]
[347089939,1735492271161,-500.0,0.00015921,2]
[347089940,1735492271171,-500.0,0.00015922,2]
[347089941,1735492271180,-150.0,0.00015922,2]
[347089942,1735492271190,-150.0,0.00015933,2]
[347089943,1735492271200,-150.0,0.00015945,2]
[347089944,1735492271209,-150.0,0.00015952,2]
[347089945,1735492271219,-150.0,0.00015985,2]
[347089946,1735492271229,-150.0,0.00015987,2]
[347089947,1735492271238,-9651.10000001,0.00016,2]
[347089948,1735492271248,-150.0,0.00016033,2]
[347089949,1735492271258,-150.0,0.00016048,2]
[347089950,1735492271267,-499.58,0.00016058,2]
[347089951,1735492271277,-150.0,0.00016084,2]
[347089952,1735492271287,-2060.724,0.00016108,2]
[347089953,1735492271298,-6186.55,0.00016116,2]
[347089954,1735492271307,-1057.0,0.00016116,2]
[347089955,1735492271317,-150.0,0.00016126,2]
[347089956,1735492271326,-150.0,0.00016137,2]
[347089957,1735492271336,-1500.0,0.00016148,2]
[347089958,1735492271346,-1000.0,0.00016152,2]
[347089959,1735492271355,-150.0,0.00016162,2]
[347089960,1735492271365,-150.0,0.00016167,2]
[347089961,1735492271374,-823.77,0.00016193,2]
[347089962,1735492271384,-3884.19,0.00016193,2]
[347089963,1735492271393,-2947.67,0.00016193,2]
[347089964,1735492271403,-500.0,0.00016193,2]
[347089965,1735492271413,-894.1,0.00016193,2]
[347089966,1735492271422,-1301.93,0.00016193,2]
[347089967,1735492271433,-500.0,0.00016193,2]
[347089968,1735492271443,-1699.41,0.00016193,2]
[347089969,1735492271454,-500.0,0.00016193,2]
[347089970,1735492271464,-507.7,0.00016193,2]
[347089971,1735492271474,-846.62,0.00016193,2]
[347089972,1735492271484,-518.89,0.00016193,2]
[347089973,1735492271494,-602.95,0.00016193,2]